Workbook

Sheet Cover
B3: Excel + VBA
B4: für Controller
B7: Kapitel | C7: 3
B8: Thema | C8: Wichtige Funktionen
B10: Inhalt | C10: Funktionen für das Controlling:
C11: Grundfunktionen
C12: Summenfunktionen
C13: Positionsfunktionen
C14: Datumsfunktionen
C15: Zählfunktionen
C16: Barwertfunktionen
C17: Abschreibungsfunktionen
C18: Rundungsfunktionen
B21: Autor | C21: Harald Nahrstedt
B22: Datum | C22: 2019-01-01
B23: Version | C23: 1.0
B26: Springer Verlag

Sheet WENN
A1: Warengruppe | B1: Januar | C1: Februar | D1: März
A2: A | B2: 12500 | C2: 15340 | D2: 12460
A3: B | B3: 16790 | C3: 16780 | D3: 13540
A4: C | B4: 10890 | C4: 15460 | D4: 12390
A5: D | B5: 8890 | C5: 9230 | D5: 7430
A6: Gesamtumsatz | B6: =SUM(B2:B5) -> 49070 | C6: =SUM(C2:C5) -> 56810 | D6: =SUM(D2:D5) -> 45820
A8: Bedingung
A9: 50000 | B9: =IF(Gesamtumsatz>Bedingung,"Ziel erreicht","Ziel verfehlt") ->  | C9: =IF(Gesamtumsatz>Bedingung,"Ziel erreicht","Ziel verfehlt") ->  | D9: =IF(Gesamtumsatz>Bedingung,"Ziel erreicht","Ziel verfehlt") -> 

Sheet UND
A1: Gebiet | B1: Verkäufer | C1: Umsatz | D1: Bemerkung
A2: Nord | B2: Schuster | C2: 21300
A3: Süd | B3: Bäcker | C3: 11500 | D3: gefunden
A4: Ost | B4: Schmied | C4: 10200
A5: Ost | B5: Schuster | C5: 9800
A6: West | B6: Bäcker | C6: 6700
A7: Süd | B7: Schmied | C7: 8300
A8: Nord | B8: Schuster | C8: 15400
A9: Süd | B9: Bäcker | C9: 15800 | D9: gefunden
A10: West | B10: Schmied | C10: 9400
A13: Gebiet | B13: Süd
A14: Verkäufer | B14: Bäcker
A15: Umsatz | B15: 27300

Sheet ODER
A1: Gebiet | B1: Umsatz | C1: Bemerkung
A2: Nord | B2: 15000 | C2: =IF(OR(Gebiet=Gebiet1,Gebiet=Gebiet2),"gefunden","") -> 
A3: Süd | B3: 9000 | C3: =IF(OR(Gebiet=Gebiet1,Gebiet=Gebiet2),"gefunden","") -> 
A4: Ost | B4: 11000 | C4: =IF(OR(Gebiet=Gebiet1,Gebiet=Gebiet2),"gefunden","") -> 
A5: Ost | B5: 12000 | C5: =IF(OR(Gebiet=Gebiet1,Gebiet=Gebiet2),"gefunden","") -> 
A6: West | B6: 5500 | C6: =IF(OR(Gebiet=Gebiet1,Gebiet=Gebiet2),"gefunden","") -> 
A7: Süd | B7: 8500 | C7: =IF(OR(Gebiet=Gebiet1,Gebiet=Gebiet2),"gefunden","") -> 
A8: Nord | B8: 18000 | C8: =IF(OR(Gebiet=Gebiet1,Gebiet=Gebiet2),"gefunden","") -> 
A9: Nord | B9: 16000 | C9: =IF(OR(Gebiet=Gebiet1,Gebiet=Gebiet2),"gefunden","") -> 
A10: West | B10: 7000 | C10: =IF(OR(Gebiet=Gebiet1,Gebiet=Gebiet2),"gefunden","") -> 
A13: Gebiet1 | B13: Nord
A14: Gebiet2 | B14: Ost
A15: Umsatz | B15: =SUMIF(Bemerkung,"gefunden",Umsatz) -> 

Sheet BEREICH.VERSCHIEBEN
A1: Pos | B1: Warengruppe | C1: Januar | D1: Februar | E1: März
A2: 1 | B2: A | C2: 23100 | D2: 15300 | E2: 19500
A3: 2 | B3: B | C3: 18500 | D3: 16200 | E3: 17100
A4: 3 | B4: C | C4: 16300 | D4: 11400 | E4: 15300
A5: 4 | B5: D | C5: 7600 | D5: 8700 | E5: 9700
A7: Umsatzermittlung für einen Monat
B8: Monat als Zahl | C8: 3
B9: Gesamtumsatz | C9: =SUM(OFFSET(Warengruppe,,Monat)) -> 0
A11: Umsatzermittlung für eine Warengruppe
B12: WG-Position | C12: 4
B13: Gesamtumsatz | C13: =SUM(OFFSET(Quartal,Position,)) -> 

Sheet MIN
A1: Monat | B1: Produkt1 | C1: Produkt2 | D1: Produkt3
A2: Januar | B2: 432 | C2: 1120 | D2: 1436
A3: Februar | B3: 382 | C3: 89 | D3: 234
A4: März | B4: 611 | C4: 105 | D4: 656
A5: April | B5: 160 | C5: 213 | D5: 98
A6: Mai | B6: 988 | C6: 899 | D6: 256
A7: Juni | B7: 743 | C7: 654 | D7: 347
A8: Juli | B8: 854 | C8: 436 | D8: 675
A9: August | B9: 812 | C9: 1098 | D9: 238
A10: September | B10: 102 | C10: 199 | D10: 217
A11: Oktober | B11: 366 | C11: 437 | D11: 459
A12: November | B12: 310 | C12: 565 | D12: 378
A13: Dezember | B13: 744 | C13: 345 | D13: 645
A15: Stückzahlenanalyse
A16: kleinster Wert aus allen | B16: 89
A17: kleinster Wert aus P1 u. P3 | B17: 98
A18: kleinste Zahl > 300 | B18: 310

Sheet MAX
A1: Monat | B1: Produkt1 | C1: Produkt2 | D1: Produkt3
A2: Januar | B2: 432 | C2: 1120 | D2: 1436
A3: Februar | B3: 382 | C3: 89 | D3: 234
A4: März | B4: 611 | C4: 105 | D4: 656
A5: April | B5: 160 | C5: 213 | D5: 98
A6: Mai | B6: 988 | C6: 899 | D6: 256
A7: Juni | B7: 743 | C7: 654 | D7: 347
A8: Juli | B8: 854 | C8: 436 | D8: 675
A9: August | B9: 812 | C9: 1098 | D9: 238
A10: September | B10: 102 | C10: 199 | D10: 217
A11: Oktober | B11: 366 | C11: 437 | D11: 459
A12: November | B12: 310 | C12: 565 | D12: 378
A13: Dezember | B13: 744 | C13: 345 | D13: 645
A15: Stückzahlenanalyse
A16: größter Wert aus allen | B16: =MAX(Mengen) -> 
A17: größter Wert aus P1 u. P3 | B17: =MAX(Produkt1,Produkt3) -> 
A18: größter Wert < 300 | B18: =MAX(IF(Mengen<300,Mengen)) -> 
A19: größter Wert zwischen 650 und 830 | B19: =MAX(IF(Mengen>=650,IF(Mengen<=830,Mengen),)) -> 

Sheet SUMME
A1: Warengruppe | B1: Januar
A2: A | B2: 13200
A3: B | B3: 15600
A4: C | B4: 12500
A5: D | B5: 7800
A6: Gesamtumsatz | B6: =SUM(Januar) -> 

Sheet SUMMEWENN
A1: Auftraggeber | B1: Umsatz
A2: A | B2: 10000
A3: B | B3: 5000
A4: C | B4: 25000
A5: A | B5: 18500
A6: C | B6: 3000
A9: Kunde | B9: A
A10: Umsatz | B10: =SUMIF(Auftraggeber,Kunde,Umsatz) -> 
A11: Umsatz < 15000 | B11: =SUMIF(Umsatz,"<13500") -> 

Sheet SUMMEWENNS
A1: Kunde | B1: Land | C1: Stadt | D1: Jahresumsatz
A2: A | B2: Deutschland | C2: Berlin | D2: 750599
A3: B | B3: Österreich | C3: Basel | D3: 298764
A4: C | B4: Schweiz | C4: Zug | D4: 118563
A5: D | B5: Niederlande | C5: Den Haag | D5: 55198
A6: E | B6: Deutschland | C6: Frankfurt | D6: 861634
A7: C | B7: Frankreich | C7: Lyon | D7: 1560678
A8: D | B8: Deutschland | C8: Köln | D8: 46200
A9: C | B9: Schweiz | C9: Bern | D9: 112456
A12: Kunde | B12: C
A13: Land | B13: Schweiz
A14: Umsatz | B14: 231019

Sheet DBSUMME
A1: Kunde | B1: Land | C1: Stadt | D1: Jahresumsatz | E1: Aufträge
A2: A | B2: Deutschland | C2: Berlin | D2: 750599 | E2: 6
A3: B | B3: Schweiz | C3: Zug | D3: 298764 | E3: 3
A4: C | B4: Österreich | C4: Wien | D4: 118563 | E4: 2
A5: D | B5: Niederlande | C5: Den Haag | D5: 55198 | E5: 4
A6: E | B6: Deutschland | C6: Frankfurt | D6: 861634 | E6: 7
A7: F | B7: Frankreich | C7: Lyon | D7: 1560678 | E7: 9
A8: G | B8: Deutschland | C8: Köln | D8: 46200 | E8: 3
A9: H | B9: Belgien | C9: Brüssel | D9: 643560 | E9: 8
A12: Kunde | B12: Land | C12: Stadt | D12: Jahresumsatz | E12: Aufträge
B13: Deutschland | D13: >500000 | E13: >5
D14: =DSUM(_xlnm.Database,Suche,Kriterien) -> 

Sheet VERWEIS
A1: Warengruppe | B1: Januar | C1: Februar | D1: März
A2: A | B2: 13450 | C2: 14560 | D2: 16340
A3: B | B3: 18230 | C3: 17450 | D3: 15980
A4: C | B4: 15440 | C4: 16210 | D4: 15390
A5: D | B5: 9870 | C5: 8730 | D5: 8920
A6: Gesamtumsatz
A8: Vektorversion
A9: Warengruppe | B9: A
A10: Monat | B10: Januar
A11: Umsatz | B11: =LOOKUP(Warengruppe1,Warengruppe,Januar) -> 
A13: Matrixversion
A14: Warengruppe | B14: C
A15: Umsatz | B15: =LOOKUP(Warengruppe2,Matrix) -> 

Sheet SVERWEIS
A1: Warengruppe | B1: Januar | C1: Februar | D1: März
A2: A | B2: 13450 | C2: 14560 | D2: 16340
A3: B | B3: 18230 | C3: 17450 | D3: 15980
A4: C | B4: 15440 | C4: 16210 | D4: 15390
A5: D | B5: 9870 | C5: 8730 | D5: 8920
A6: Gesamtumsatz | B6: =SUM(B2:B5) -> 56990 | C6: =SUM(C2:C5) -> 56950 | D6: =SUM(D2:D5) -> 56630
A8: Suche
A9: Warengruppe | B9: B
A10: Monatszahl | B10: 2
A11: Umsatz | B11: =VLOOKUP(Warengruppe,Matrix,Monat+1,FALSE) -> 17450

Sheet WVERWEIS
A1: Monat | B1: A | C1: B | D1: C | E1: D | F1: Gesamtumsatz
A2: Januar | B2: 13450 | C2: 18230 | D2: 15440 | E2: 9870 | F2: =SUM(B2:E2) -> 56990
A3: Februar | B3: 14560 | C3: 17450 | D3: 16210 | E3: 8730 | F3: =SUM(B3:E3) -> 56950
A4: März | B4: 16340 | C4: 15980 | D4: 15390 | E4: 8920 | F4: =SUM(B4:E4) -> 56630
A8: Suche
A9: Warengruppe | B9: C
A10: Monatszahl | B10: 2
A11: Umsatz | B11: =HLOOKUP(Warengruppe,Matrix,Monat+1,FALSE) -> 

Sheet VERGLEICH
A1: Warengruppe | B1: Januar | C1: Februar | D1: März
A2: A | B2: 13450 | C2: 14560 | D2: 16340
A3: B | B3: 18230 | C3: 17450 | D3: 15980
A4: C | B4: 15440 | C4: 16210 | D4: 15390
A5: D | B5: 9870 | C5: 8730 | D5: 8920
A6: Gesamtumsatz | B6: =SUM(B2:B5) -> 56990 | C6: =SUM(C2:C5) -> 56950 | D6: =SUM(D2:D5) -> 56630
A8: Suche
A9: Monat | B9: März
A10: Warengruppe | B10: C
A11: Spalte Monat | B11: =MATCH(Monat,Monate,0) -> 
A12: Zeile WG | B12: =MATCH(Warengruppe,Warengruppen,0) -> 
A13: Umsatz | B13: =INDEX(Matrix,ZeileW,SpalteM) -> 

Sheet INDEX
A1: Warengruppe | B1: Januar | C1: Februar | D1: März
A2: A | B2: 13450 | C2: 14560 | D2: 16340
A3: B | B3: 18230 | C3: 17450 | D3: 15980
A4: C | B4: 15440 | C4: 16210 | D4: 15390
A5: D | B5: 9870 | C5: 8730 | D5: 8920
A6: Gesamtumsatz | B6: =SUM(B2:B5) -> 56990 | C6: =SUM(C2:C5) -> 56950 | D6: =SUM(D2:D5) -> 56630
A8: Diagrammvorlage
A9: Monatszahl | B9: 2
A11: A | B11: B | C11: C | D11: D
A12: =INDEX(Matrix,COLUMN(),Monat+1) -> 14560 | B12: =INDEX(Matrix,COLUMN(),Monat+1) -> 17450 | C12: =INDEX(Matrix,COLUMN(),Monat+1) -> 16210 | D12: =INDEX(Matrix,COLUMN(),Monat+1) -> 8730

Sheet INDEX_2
A1: Erlöse | B1: Januar | C1: Februar | D1: März
A2: Produkt 1 | B2: 24300 | C2: 22800 | D2: 25100
A3: Produkt 2 | B3: 29800 | C3: 27900 | D3: 26200
A4: Produkt 3 | B4: 15600 | C4: 26300 | D4: 27300
A5: Gesamterlöse | B5: =SUM(B2:B4) -> 69700 | C5: =SUM(C2:C4) -> 77000 | D5: =SUM(D2:D4) -> 78600
A7: Kosten | B7: Januar | C7: Februar | D7: März
A8: Produkt 1 | B8: 22300 | C8: 19800 | D8: 20100
A9: Produkt 2 | B9: 21000 | C9: 21200 | D9: 21000
A10: Produkt 3 | B10: 23700 | C10: 23900 | D10: 24500
A11: Gesamtkosten | B11: =SUM(B8:B10) -> 67000 | C11: =SUM(C8:C10) -> 64900 | D11: =SUM(D8:D10) -> 65600
A13: Gewinnanalyse
A14: Monatszahl | B14: 3
A15: Produktnummer | B15: 2
A17: Erlöse | B17: =INDEX(ErlöseTabelle[],Produktnummer,Monatszahl+1,1) -> 
A18: Kosten | B18: =INDEX(KostenTabelle[],Produktnummer,Monatszahl+1,1) -> 
A19: Gewinn | B19: =Erlöse-Kosten -> 

Sheet KGRÖSSTE
A1: Warengruppe | B1: Januar | C1: Februar | D1: März
A2: A | B2: 13450 | C2: 14560 | D2: 16340
A3: B | B3: 18230 | C3: 17450 | D3: 15980
A4: C | B4: 15440 | C4: 16210 | D4: 15390
A5: D | B5: 9870 | C5: 8730 | D5: 8920
A6: E | B6: 12700 | C6: 10300 | D6: 11600
A7: F | B7: 16700 | C7: 12500 | D7: 13300
A8: Gesamtumsatz | B8: =SUM(B2:B7) -> 86390 | C8: =SUM(C2:C7) -> 79750 | D8: =SUM(D2:D7) -> 81530
A10: Umsatzanalyse
A11: größter Umsatz | B11: =LARGE(Matrix,1) -> 18230
A12: 2.größter Umsatz | B12: =LARGE(Matrix,2) -> 17450
A13: 3.größter Umsatz | B13: =LARGE(Matrix,3) -> 16340
A14: Top3 | B14: =SUM(B11:B13) -> 52020

Sheet KKLEINSTE
A1: Warengruppe | B1: Januar | C1: Februar | D1: März
A2: A | B2: 13450 | C2: 14560 | D2: 16340
A3: B | B3: 18230 | C3: 17450 | D3: 15980
A4: C | B4: 15440 | C4: 16210 | D4: 15390
A5: D | B5: 9870 | C5: 8730 | D5: 8920
A6: E | B6: 12700 | C6: 10300 | D6: 11600
A7: F | B7: 16700 | C7: 12500 | D7: 13300
A8: Gesamtumsatz | B8: =SUM(B2:B7) -> 86390 | C8: =SUM(C2:C7) -> 79750 | D8: =SUM(D2:D7) -> 81530
A10: Umsatzanalyse
A11: niedrigster Umsatz | B11: =SMALL(Matrix,1) -> 8730
A12: 2.niedrigster Umsatz | B12: =SMALL(Matrix,2) -> 8920
A13: 3.niedrigster Umsatz | B13: =SMALL(Matrix,3) -> 9870
A14: Down3 | B14: =SUM(B11:B13) -> 27520

Sheet JAHR.MONAT.TAG
A1: Datum | B1: Umsatz | C1: Produkt | D1: Jahr | E1: Monat | F1: Tag | G1: Wochentag
A2: 2018-02-12 | B2: 21300 | C2: P2 | D2: =YEAR(Datum) ->  | E2: =MONTH(Datum) ->  | F2: =DAY(Datum) ->  | G2: =Datum -> 
A3: 2018-03-16 | B3: 35600 | C3: P1
A4: 2018-04-11 | B4: 32700 | C4: P3
A5: 2018-05-15 | B5: 28900 | C5: P1
A6: 2018-06-13 | B6: 31200 | C6: P2
A7: 2018-07-17 | B7: 29700 | C7: P3

Sheet DATUM
A1: Kunde | B1: Wert | C1: Datum | D1: Skonto | E1: Dauer | F1: Zahlungshöhe | G1: Fälligkeit
A2: A | B2: 24300 | C2: 2018-01-21 | D2: 0.02 | E2: 34 | F2: =Wert*(1-Skonto) ->  | G2: =DATE(YEAR(Datum),MONTH(Datum), DAY(Datum)+Dauer) -> 
A3: B | B3: 26700 | C3: 2018-01-12 | D3: 0.03 | E3: 12 | F3: =Wert*(1-Skonto) ->  | G3: =DATE(YEAR(Datum),MONTH(Datum), DAY(Datum)+Dauer) -> 
A4: C | B4: 19800 | C4: 2018-01-19 | D4: 0.02 | E4: 18 | F4: =Wert*(1-Skonto) ->  | G4: =DATE(YEAR(Datum),MONTH(Datum), DAY(Datum)+Dauer) -> 
A5: D | B5: 32100 | C5: 2018-01-28 | D5: 0.04 | E5: 9 | F5: =Wert*(1-Skonto) ->  | G5: =DATE(YEAR(Datum),MONTH(Datum), DAY(Datum)+Dauer) -> 

Sheet KALENDERWOCHE
A1: Datum | B1: Umsatz | C1: Produkt | D1: Kalenderwoche
A2: 2018-02-12 | B2: 21300 | C2: P2 | D2: =WEEKNUM(TabelleKW[[#This Row],[Datum]],2) -> 7
A3: 2018-03-16 | B3: 35600 | C3: P1 | D3: =WEEKNUM(TabelleKW[[#This Row],[Datum]],2) -> 11
A4: 2018-04-11 | B4: 32700 | C4: P3 | D4: =WEEKNUM(TabelleKW[[#This Row],[Datum]],2) -> 15
A5: 2018-05-15 | B5: 28900 | C5: P1 | D5: =WEEKNUM(TabelleKW[[#This Row],[Datum]],2) -> 20
A6: 2018-06-13 | B6: 31200 | C6: P2 | D6: =WEEKNUM(TabelleKW[[#This Row],[Datum]],2) -> 24
A7: 2018-07-17 | B7: 29700 | C7: P3 | D7: =WEEKNUM(TabelleKW[[#This Row],[Datum]],2) -> 29

Sheet HEUTE
A1: ToDo | B1: 2018-09-17 | C1: 2018-09-24 | D1: 2018-10-01 | E1: 2018-10-08
A2: A
A3: B
A4: C

Sheet JETZT
B3: =NOW() -> 2018-10-31T23:42:14.730
B4: =NOW() -> 2018-10-31T23:42:14.730

Sheet ANZAHL
A1: Datum | B1: Umsatz | C1: Produkt
A2: 2018-02-12 | B2: 21300 | C2: P2
A3: 2018-03-16 | B3: 35600 | C3: P1
A4: 2018-04-11 | B4: 32700 | C4: P3
A5: 2018-04-21 | B5: storniert | C5: P2
A6: 2018-05-15 | B6: 28900 | C6: P1
A7: 2018-06-13 | B7: 31200 | C7: P2
A8: 2018-07-17 | B8: 29700 | C8: P3
A10: Zählhilfe
A11: Anzahl Werte | B11: =COUNT(Umsatz) -> 0
A12: Anzahl Umsätze | B12: =COUNTA(Umsatz) -> 1
A13: Anzahl Produkte | B13: =COUNTA(Produkt) -> 1

Sheet ZÄHLENWENN
A1: Datum | B1: Umsatz | C1: Produkt
A2: 2018-02-12 | B2: 21300 | C2: P2
A3: 2018-03-16 | B3: 35600 | C3: P1
A4: 2018-04-11 | B4: 32700 | C4: P3
A5: 2018-04-21 | B5: storniert | C5: P2
A6: 2018-05-15 | B6: 28900 | C6: P1
A7: 2018-06-13 | B7: 31200 | C7: P2
A8: 2018-07-17 | B8: 29700 | C8: P3
A10: Zählhilfe
A11: Anzahl P2 | B11: =COUNTIF(Produkt,"P2") -> 
A12: Anzahl Umsatz>32000 | B12: =COUNTIF(Umsatz,">32000") -> 

Sheet ZÄHLENWENNS
A1: Warengruppe | B1: Januar | C1: Februar | D1: März
A2: A | B2: 13450 | C2: 14560 | D2: 19300
A3: B | B3: 18230 | C3: 17450 | D3: 18350
A4: C | B4: 15440 | C4: 16210 | D4: 15390
A5: D | B5: 9870 | C5: 8730 | D5: 8920
A6: E | B6: 12700 | C6: 10300 | D6: 17200
A7: F | B7: 16700 | C7: 12500 | D7: 13300
A9: Anzahl Umsätze | B9: =COUNTIFS(Januar,">=15000",Februar,">=16000",März,">=17000") -> 
A10: Jan=>15.000 | B10: =COUNTIFS(Januar,">=15000") -> 
A11: Feb=>16.000 | B11: =COUNTIFS(Februar,">=16000") -> 
A12: Mrz=>17.000 | B12: =COUNTIFS(März,">=17000") -> 

Sheet ZEILE & SPALTE
A1: Monat | B1: Produkt1 | C1: Produkt2 | D1: Produkt3
A2: Januar | B2: 432 | C2: 1120 | D2: 1436
A3: Februar | B3: 382 | D3: 234
A4: März | B4: 611 | C4: 105 | D4: 656
A5: April | B5: 160 | C5: 213
A6: Mai | B6: 988 | C6: 899 | D6: 256
A7: Juni | B7: 743 | C7: 654 | D7: 347
A8: Juli | B8: 854 | C8: 436 | D8: 675
A9: August | B9: 812 | C9: 1098 | D9: 238
A10: September | C10: 199 | D10: 217
A11: Oktober | B11: 366 | C11: 437 | D11: 459
A12: November | B12: 310 | C12: 565 | D12: 378
A13: Dezember | B13: 744 | C13: 345 | D13: 645
A15: Zeile | B15: Spalte
A16: =ROW($C$3) -> 3 | B16: =COLUMN($C$3) -> 3
A17: =ROW($D$5) -> 5 | B17: =COLUMN($D$5) -> 4
A18: =ROW($B$10) -> 10 | B18: =COLUMN($B$10) -> 2

Sheet ADRESSE
A1: Monat | B1: Produkt1 | C1: Produkt2 | D1: Produkt3
A2: Januar | B2: 432 | C2: 1120 | D2: 1436
A3: Februar | B3: 382 | D3: 234
A4: März | B4: 611 | C4: 105 | D4: 656
A5: April | B5: 160 | C5: 213
A6: Mai | B6: 988 | C6: 899 | D6: 256
A7: Juni | B7: 743 | C7: 654 | D7: 347
A8: Juli | B8: 854 | C8: 436 | D8: 675
A9: August | B9: 812 | C9: 1098 | D9: 238
A10: September | C10: 199 | D10: 217
A11: Oktober | B11: 366 | C11: 437 | D11: 459
A12: November | B12: 310 | C12: 565 | D12: 378
A13: Dezember | B13: 744 | C13: 345 | D13: 645

Sheet RMZ
A1: Parameter | B1: Wert
A2: Fälligkeit | B2: 1
A3: Restwert | B3: 8000
A4: Zinssatz p.a. | B4: 0.035
A5: Laufzeit in Monate | B5: 48
A6: Kreditbetrag | B6: 50000
A7: montl. Rate | B7: =PMT(Zinssatz/12,Laufzeit,Kreditbetrag,Restwert,Fälligkeit) -> 

Sheet BW
A1: Parameter | B1: Wert
A2: Fälligkeit | B2: 1
A3: monatliche Zahlung | B3: 600
A4: Laufzeit in Monate | B4: 72
A5: Zielwert | B5: 50000
A6: Zins | B6: 0.0905
A7: Startkapital | B7: =PV(Zinssatz/12,Laufzeit,Zahlung*-1,Zielwert,Fälligkeit) -> 

Sheet ZW
A1: Parameter | B1: Wert
A2: Fälligkeit | B2: 1
A3: monatliche Zahlung | B3: 1200
A4: Zinssatz p.a. | B4: 0.035
A5: Laufzeit in Monate | B5: 48
A6: Kreditbetrag | B6: 50000
A7: Restwert | B7: =FV(Zinssatz/12,Laufzeit,Zahlung*-1,Kreditbetrag,Fälligkeit) -> 

Sheet ZINS
A1: Parameter | B1: Wert
A2: Fälligkeit | B2: 1
A3: monatl. Rate | B3: 1200
A4: Restwert | B4: 4000
A5: Laufzeit in Monate | B5: 48
A6: Kreditbetrag | B6: 50000
A7: geschätzter Zins | B7: 0.035
A8: Zinssatz p.a. | B8: =RATE(Laufzeit,Zahlung*-1,Kreditbetrag,Restwert,Fälligkeit,Zins)*12 -> 

Sheet ZINSZ
A1: Parameter | B1: Wert
A2: Fälligkeit | B2: 1
A3: monatl. Rate | B3: 1200
A4: Zinssatz p.a. | B4: 0.035
A5: Laufzeit in Monate | B5: 48
A6: Kreditbetrag | B6: 50000
A7: Restwert | B7: 4000
A9: Peroide | B9: 12
A10: Zinsanteil | B10: =IPMT(Zinssatz/12,Periode,Laufzeit,Kreditbetrag,Restwert,Fälligkeit) -> 

Sheet ZZR
A1: Parameter | B1: Wert
A2: Fälligkeit | B2: 1
A3: monatl. Rate | B3: 600
A4: Restwert | B4: 4000
A5: Zins | B5: 0.035
A6: Kreditbetrag | B6: 50000
A7: Laufzeit in Monate | B7: =NPER(Zinssatz/12,Zahlung*-1,Kreditbetrag,Restwert,Fälligkeit) -> 

Sheet NBW
A1: Parameter | B1: Wert | D1: Periode | E1: Einzahlung | F1: Auszahlung | G1: Überschuss | H1: Abzinssätze | I1: Barwert
A2: Anschaffungskosten | B2: 50000 | D2: 1 | E2: 13500 | F2: 8000 | G2: 5500 | H2: 0.9661835749 | I2: 5314.009662
A3: kalkulatorischer Zinssatz | B3: 0.035 | D3: 2 | E3: 18200 | F3: 8000 | G3: 10200 | H3: 0.9335107004 | I3: 9521.809144
A4: Summe Barwerte | B4: 82261.37522 | D4: 3 | E4: 31600 | F4: 8000 | G4: 23600 | H4: 0.9019427057 | I4: 21285.84785
A5: Kapitalwert | B5: 32261.37522 | D5: 4 | E5: 33700 | F5: 8000 | G5: 25700 | H5: 0.8714422277 | I5: 22396.06525
D6: 5 | E6: 36200 | F6: 8000 | G6: 28200 | H6: 0.8419731669 | I6: 23743.64331
D7: Summen | E7: =SUM(E2:E6) -> 133200 | F7: =SUM(F2:F6) -> 40000 | G7: =SUM(G2:G6) -> 93200 | I7: 82261.37522
G9: NBW aus Tabelle: | I9: 32261.37522
G10: NBW aus Formel: | I10: 32261.37522

Sheet LIA
A1: Parameter | B1: Wert
A2: Anschaffungskosten | B2: 22000
A3: Restwert | B3: 1600
A4: Nutzungsdauer | B4: 5
A5: Abschreibungsbetrag | B5: =SLN(AnKosten,Restwert,Dauer) -> 

Sheet DIA
A1: Parameter | B1: Wert
A2: Anschaffungskosten | B2: 22000
A3: Restwert | B3: 1600
A4: zu errechnender Zeitpunkt | B4: 3
A5: Nutzungsdauer | B5: 6
A6: Abschreibungsbetrag | B6: =SYD(AnKosten,Restwert,Dauer,Zeitpunkt) -> 

Sheet GDA
A1: Parameter | B1: Wert
A2: Anschaffungskosten | B2: 27000
A3: Restwert | B3: 2500
A4: zu errechnender Zeitpunkt | B4: 3
A5: Abschreibungsfaktor | B5: 1.5
A6: Nutzungsdauer | B6: 6
A7: Abschreibungsbetrag | B7: 3796.875

Sheet GDA2
A1: Parameter | B1: Wert
A2: Anschaffungskosten | B2: 27000
A3: Restwert | B3: 2500
A4: zu errechnender Zeitpunkt | B4: 3
A5: verbleibende Monate | B5: 8
A6: Nutzungsdauer | B6: 6
A7: Abschreibungsbetrag | B7: 4646.579094

Sheet VDB
A1: Parameter | B1: Wert
A2: Anschaffungskosten | B2: 22000
A3: Restwert | B3: 2000
A4: Anfangszeitpunkt | B4: 2
A5: Ende | B5: 6
A6: Faktor | B6: 1.5
A7: Nutzungsdauer | B7: 10
A8: kein Wechsel deg. zu lin.? | B8: FALSE
A9: Abschreibungsbetrag | B9: 7685.7865

Sheet RUNDEN
A1: Buchhaltungswerte | D1: gerundete Werte
A2: Parameter | B2: Wert | D2: Parameter | E2: Wert
A3: A | B3: 11786.34 | D3: A | E3: =ROUND(Wert,-2) -> 
A4: B | B4: 27456.55 | D4: B | E4: =ROUND(Wert,-2) -> 
A5: C | B5: 38123.56 | D5: C | E5: =ROUND(Wert,-2) -> 
A6: D | B6: 22598.56 | D6: D | E6: =ROUND(Wert,-2) -> 
A7: E | B7: 19823.84 | D7: E | E7: =ROUND(Wert,-2) -> 

Sheet AUFRUNDEN
A1: Buchhaltungswerte | D1: aufgerundete Werte
A2: Parameter | B2: Wert | D2: Parameter | E2: Wert
A3: A | B3: 11786.34 | D3: A | E3: =ROUNDUP(Wert,-2) -> 
A4: B | B4: 27456.55 | D4: B | E4: =ROUNDUP(Wert,-2) -> 
A5: C | B5: 38123.56 | D5: C | E5: =ROUNDUP(Wert,-2) -> 
A6: D | B6: 22598.56 | D6: D | E6: =ROUNDUP(Wert,-2) -> 
A7: E | B7: 19823.84 | D7: E | E7: =ROUNDUP(Wert,-2) -> 

Sheet ABRUNDEN
A1: Buchhaltungswerte | D1: abgerundete Werte
A2: Parameter | B2: Wert | D2: Parameter | E2: Wert
A3: A | B3: 11786.34 | D3: A | E3: =ROUNDDOWN(Wert,-2) -> 
A4: B | B4: 27456.55 | D4: B | E4: =ROUNDDOWN(Wert,-2) -> 
A5: C | B5: 38123.56 | D5: C | E5: =ROUNDDOWN(Wert,-2) -> 
A6: D | B6: 22598.56 | D6: D | E6: =ROUNDDOWN(Wert,-2) -> 
A7: E | B7: 19823.84 | D7: E | E7: =ROUNDDOWN(Wert,-2) -> 
